fUST/lending_fUST_20250812
["ID","MTS","AMOUNT","RATE_DAILY","PERIOD"]
[378738747,1754997044156,-902.85,0.00019219,2]
[378738748,1754997044165,-460.0,0.00019219,2]
[378738749,1754997044174,-460.0,0.00019219,2]
[378738750,1754997044183,-460.0,0.00019219,2]
[378738751,1754997044192,-1212.71,0.00019219,2]
[378738752,1754997044201,-460.0,0.00019219,2]
[378738753,1754997044211,-460.0,0.00019219,2]
[378738754,1754997044220,-460.0,0.0001922,2]
[378738755,1754997044229,-460.0,0.0001922,2]
[378738756,1754997044238,-275.78150401,0.0001922,2]
[378738757,1754997044247,-460.0,0.0001922,2]
[378738758,1754997044257,-460.0,0.0001922,2]
[378738759,1754997044266,-460.0,0.0001922,2]
[378738760,1754997044276,-572.02,0.0001922,2]
[378738761,1754997044285,-498.75,0.0001922,2]
[378738762,1754997044294,-305.3046847,0.0001922,2]
[378738763,1754997044303,-460.0,0.0001922,2]
[378738764,1754997044313,-2703.14348195,0.00019256,2]
[378738765,1754997044323,-1000.0,0.00019271,2]
[378738766,1754997044337,-1000.0,0.00019271,2]
[378738767,1754997044346,-1000.0,0.00019271,2]
[378738768,1754997044357,-612.12284503,0.00019274,2]
[378738769,1754997044366,-742.97626793,0.00019274,2]
[378738770,1754997044376,-1000.0,0.00019274,2]
[378738771,1754997044385,-501.43765191,0.00019277,2]
[378738772,1754997044394,-503.11918519,0.00019277,2]
[378738773,1754997044404,-317.42164629,0.00019284,2]
[378738774,1754997044414,-1000.0,0.00019284,2]
[378738775,1754997044424,-3000.0,0.00019296,2]
[378738776,1754997044433,-100000.0,0.00019329,2]
[378738777,1754997044443,-201.3,0.00019365,2]
[378738778,1754997044452,-4000.0,0.00019368,2]
[378738779,1754997044461,-500.49707371,0.00019373,2]
[378738780,1754997044471,-500.0,0.00019373,2]
[378738781,1754997044480,-12673.43806534,0.00019467,2]
[378738782,1754997044489,-1500.0,0.00019468,2]
[378738783,1754997044499,-160.0,0.0001947,2]
[378738784,1754997044508,-160.0,0.0001947,2]
[378738785,1754997044517,-160.0,0.0001947,2]
[378738786,1754997044527,-215.52532928,0.0001947,2]
[378738787,1754997044537,-528.03329096,0.0001947,2]
[378738788,1754997044546,-417.15472785,0.0001947,2]
[378738789,1754997044556,-160.0,0.0001947,2]
[378738790,1754997044565,-160.0,0.0001947,2]
[378738791,1754997044575,-232.0176383,0.0001947,2]
[378738792,1754997044584,-843.25559725,0.0001947,2]
[378738793,1754997044594,-160.0,0.0001947,2]
[378738794,1754997044605,-160.0,0.0001947,2]
[378738795,1754997044614,-461.76100612,0.0001947,2]
[378738796,1754997044624,-216.70963917,0.0001947,2]
[378738797,1754997044633,-160.0,0.0001947,2]
[378738798,1754997044643,-160.0,0.0001947,2]
[378738799,1754997044652,-5000.0,0.00019482,2]
[378738800,1754997044663,-1628.0,0.00019484,3]
[378738801,1754997044673,-814.0,0.00019484,3]
[378738802,1754997044682,-407.0,0.00019484,3]
[378738803,1754997044691,-460.0,0.00019486,2]
[378738804,1754997044701,-482.82,0.00019486,2]
[378738805,1754997044711,-1178.44,0.00019486,2]
[378738806,1754997044719,-460.0,0.00019486,2]
[378738807,1754997044729,-2783.55,0.00019486,2]
[378738808,1754997044738,-564.58,0.00019486,2]
[378738809,1754997044748,-460.0,0.00019487,2]
[378738810,1754997044758,-1733.83,0.00019487,2]
[378738811,1754997044767,-2264.23,0.00019487,2]
[378738812,1754997044777,-460.0,0.00019487,2]
[378738813,1754997044786,-460.0,0.00019487,2]
[378738814,1754997044795,-1356.4,0.00019487,2]
[378738815,1754997044805,-3959.62,0.00019487,2]
[378738816,1754997044814,-547.64,0.00019487,2]
[378738817,1754997044823,-800.67,0.00019487,2]
[378738818,1754997044832,-460.0,0.00019487,2]
[378738819,1754997044841,-949.7,0.00019487,2]
[378738820,1754997044852,-1121.99,0.00019487,2]
[378738821,1754997044861,-710.82,0.00019487,2]
[378738822,1754997044870,-639.9,0.00019487,2]
[378738823,1754997044879,-923.38,0.00019487,2]
[378738824,1754997044888,-460.0,0.00019488,2]
[378738825,1754997044897,-583.79,0.00019488,2]
[378738826,1754997044907,-472.03,0.00019488,2]
[378738827,1754997044917,-460.0,0.00019488,2]
[378738828,1754997044927,-460.0,0.00019488,2]
[378738829,1754997044945,-460.0,0.00019488,2]
[378738830,1754997044957,-606.38,0.00019488,2]
[378738831,1754997044966,-504.95,0.00019488,2]
[378738832,1754997044976,-460.0,0.00019488,2]
[378738833,1754997044986,-460.0,0.00019488,2]
[378738834,1754997044995,-490.1,0.00019488,2]
[378738835,1754997045005,-610.05,0.00019488,2]
[378738836,1754997045014,-460.0,0.00019488,2]
[378738837,1754997045024,-460.0,0.00019488,2]
[378738838,1754997045034,-807.82,0.00019488,2]
[378738839,1754997045043,-460.0,0.00019488,2]
[378738840,1754997045053,-469.0,0.00019488,2]
[378738841,1754997045062,-510.89,0.00019488,2]
[378738842,1754997045072,-853.56,0.00019488,2]
[378738843,1754997045081,-233.78,0.00019488,2]
[378738844,1754997045091,-460.0,0.00019488,2]
[378738845,1754997045100,-460.0,0.00019488,2]
[378738846,1754997045109,-460.0,0.00019488,2]
[378738847,1754997045119,-460.0,0.00019488,2]
[378738848,1754997045128,-460.0,0.00019488,2]
[378738849,1754997045137,-614.51,0.00019488,2]
[378738850,1754997045148,-460.0,0.00019488,2]
[378738851,1754997045158,-460.0,0.00019488,2]
[378738852,1754997045168,-460.0,0.00019488,2]
[378738853,1754997045177,-1090.97,0.00019488,2]
[378738854,1754997045188,-7814.47,0.00019488,2]
[378738855,1754997045198,-609.24,0.00019488,2]
[378738856,1754997045208,-460.0,0.00019488,2]
[378738857,1754997045218,-460.0,0.00019488,2]
[378738858,1754997045227,-2081.03,0.00019488,2]
[378738859,1754997045237,-786.2,0.00019488,2]
[378738860,1754997045247,-460.0,0.00019488,2]
[378738861,1754997045257,-2121.94,0.00019488,2]
[378738862,1754997045267,-683.65,0.00019488,2]
[378738863,1754997045276,-2050.44,0.00019488,2]
[378738864,1754997045286,-460.0,0.00019488,2]
[378738865,1754997045296,-917.42,0.00019488,2]
[378738866,1754997045305,-460.0,0.00019488,2]
[378738867,1754997045315,-460.0,0.00019488,2]
[378738868,1754997045329,-1313.8,0.00019488,2]
[378738869,1754997045339,-1201.16,0.00019488,2]
[378738870,1754997045350,-1777.05,0.00019488,2]
[378738871,1754997045360,-1195.64,0.00019488,2]
[378738872,1754997045372,-460.0,0.00019488,2]
[378738873,1754997045382,-735.68,0.00019488,2]
[378738874,1754997045393,-1018.84,0.00019488,2]
[378738875,1754997045403,-460.0,0.00019488,2]
[378738876,1754997045413,-460.0,0.00019488,2]
[378738877,1754997045423,-1630.68,0.0001949,2]
[378738878,1754997045433,-2042.81,0.0001949,2]
[378738879,1754997045444,-460.0,0.0001949,2]
[378738880,1754997045454,-704.81,0.00019491,2]
[378738881,1754997045464,-460.0,0.00019493,2]
[378738882,1754997045473,-586.5,0.00019493,2]
[378738883,1754997045483,-460.0,0.00019493,2]
[378738884,1754997045494,-460.0,0.00019493,2]
[378738885,1754997045504,-460.0,0.00019493,2]
[378738886,1754997045515,-577.31,0.00019493,2]
[378738887,1754997045525,-902.85,0.00019493,2]
[378738888,1754997045535,-460.0,0.00019493,2]
[378738889,1754997045545,-460.0,0.00019493,2]
[378738890,1754997045555,-460.0,0.00019493,2]
[378738891,1754997045564,-1212.71,0.00019493,2]
[378738892,1754997045574,-460.0,0.00019493,2]
[378738893,1754997045584,-460.0,0.00019493,2]
[378738894,1754997045594,-460.0,0.00019494,2]
[378738895,1754997045604,-460.0,0.00019494,2]
[378738896,1754997045614,-460.0,0.00019494,2]
[378738897,1754997045624,-460.0,0.00019494,2]
[378738898,1754997045634,-572.02,0.00019494,2]
[378738899,1754997045643,-498.75,0.00019494,2]
[378738900,1754997045653,-565.69236258,0.00019494,2]
[378738901,1754997045663,-151.0,0.000196,2]
[378738902,1754997045673,-201.3,0.00019629,2]
[378738903,1754997045683,-1052.72932865,0.00019645,2]
[378738904,1754997045693,-6000.0,0.00019648,2]
[378738905,1754997045704,-172.00826619,0.00019664,2]
[378738906,1754997045715,-2703.14348195,0.00019667,2]
[378738907,1754997045724,-800.0,0.0001971,2]
[378738908,1754997045734,-5000.0,0.00019718,2]
[378738909,1754997045744,-460.0,0.0001976,2]
[378738910,1754997045754,-482.82,0.0001976,2]
[378738911,1754997045764,-1178.44,0.0001976,2]
[378738912,1754997045774,-460.0,0.0001976,2]
[378738913,1754997045784,-2783.55,0.0001976,2]
[378738914,1754997045794,-564.58,0.0001976,2]
[378738915,1754997045804,-460.0,0.00019761,2]
[378738916,1754997045814,-1733.83,0.00019761,2]
[378738917,1754997045825,-2264.23,0.00019761,2]
[378738918,1754997045835,-460.0,0.00019761,2]
[378738919,1754997045845,-460.0,0.00019761,2]
[378738921,1754997045855,-1356.4,0.00019761,2]
[378738922,1754997045866,-3959.62,0.00019761,2]
[378738923,1754997045876,-547.64,0.00019761,2]
[378738924,1754997045886,-800.67,0.00019761,2]
[378738925,1754997045896,-460.0,0.00019761,2]
[378738926,1754997045906,-949.7,0.00019761,2]
[378738927,1754997045916,-1121.99,0.00019761,2]
[378738928,1754997045927,-710.82,0.00019761,2]
[378738929,1754997045937,-639.9,0.00019761,2]
[378738930,1754997045946,-923.38,0.00019761,2]
[378738931,1754997045956,-460.0,0.00019762,2]
[378738932,1754997045966,-583.79,0.00019762,2]
[378738933,1754997045976,-472.03,0.00019762,2]
[378738934,1754997045986,-460.0,0.00019762,2]
[378738935,1754997045996,-460.0,0.00019762,2]
[378738937,1754997046006,-460.0,0.00019762,2]
[378738939,1754997046016,-606.38,0.00019762,2]
[378738941,1754997046026,-504.95,0.00019762,2]
[378738943,1754997046035,-546.54761259,0.00019762,2]
[378738945,1754997046046,-460.0,0.00019762,2]
[378738947,1754997046055,-490.1,0.00019762,2]
[378738949,1754997046065,-610.05,0.00019762,2]
[378738951,1754997046075,-460.0,0.00019762,2]
[378738953,1754997046085,-460.0,0.00019762,2]
[378738955,1754997046094,-807.82,0.00019762,2]
[378738957,1754997046104,-460.0,0.00019762,2]
[378738959,1754997046114,-469.0,0.00019762,2]
[378738961,1754997046123,-510.89,0.00019762,2]
[378738963,1754997046133,-853.56,0.00019762,2]
[378738965,1754997046143,-460.0,0.00019762,2]
[378738967,1754997046153,-460.0,0.00019762,2]
[378738969,1754997046163,-460.0,0.00019762,2]
[378738971,1754997046173,-460.0,0.00019762,2]
[378738973,1754997046183,-460.0,0.00019762,2]
[378738975,1754997046192,-614.51,0.00019762,2]
[378738977,1754997046202,-460.0,0.00019762,2]
[378738979,1754997046211,-460.0,0.00019762,2]
[378738981,1754997046221,-460.0,0.00019762,2]
[378738983,1754997046231,-1090.97,0.00019762,2]
[378738986,1754997046241,-7814.47,0.00019762,2]
[378738988,1754997046251,-609.24,0.00019762,2]
[378738990,1754997046260,-460.0,0.00019762,2]
[378738992,1754997046270,-460.0,0.00019762,2]
[378738994,1754997046280,-2081.03,0.00019762,2]
[378738996,1754997046290,-786.2,0.00019762,2]
[378738998,1754997046300,-460.0,0.00019762,2]
[378739000,1754997046310,-2121.94,0.00019762,2]
[378739002,1754997046320,-683.65,0.00019762,2]
[378739004,1754997046332,-2050.44,0.00019762,2]
[378739006,1754997046342,-460.0,0.00019762,2]
[378739008,1754997046353,-917.42,0.00019762,2]
[378739010,1754997046363,-460.0,0.00019762,2]
[378739012,1754997046375,-460.0,0.00019762,2]
[378739014,1754997046385,-1313.8,0.00019762,2]
[378739016,1754997046395,-1201.16,0.00019762,2]
[378739018,1754997046406,-1777.05,0.00019762,2]
[378739020,1754997046416,-1195.64,0.00019762,2]
[378739022,1754997046426,-460.0,0.00019762,2]
[378739024,1754997046438,-735.68,0.00019762,2]
[378739026,1754997046448,-1018.84,0.00019762,2]
[378739028,1754997046458,-460.0,0.00019762,2]
[378739031,1754997046469,-460.0,0.00019762,2]
[378739033,1754997046479,-420.0,0.00019763,2]
[378739035,1754997046489,-1630.68,0.00019764,2]
[378739037,1754997046499,-2042.81,0.00019764,2]
[378739039,1754997046509,-460.0,0.00019764,2]
[378739041,1754997046518,-704.81,0.00019765,2]
[378739043,1754997046528,-460.0,0.00019767,2]
[378739045,1754997046537,-586.5,0.00019767,2]
[378739047,1754997046547,-460.0,0.00019767,2]
[378739049,1754997046557,-460.0,0.00019767,2]
[378739051,1754997046567,-460.0,0.00019767,2]
[378739053,1754997046577,-577.31,0.00019767,2]
[378739055,1754997046586,-902.85,0.00019767,2]
[378739057,1754997046596,-460.0,0.00019767,2]
[378739059,1754997046606,-460.0,0.00019767,2]
[378739061,1754997046616,-604.39569745,0.00019767,2]
[378739063,1754997046626,-1212.71,0.00019767,2]
[378739065,1754997046637,-460.0,0.00019767,2]
[378739067,1754997046647,-460.0,0.00019767,2]
[378739069,1754997046657,-460.0,0.00019768,2]
[378739072,1754997046666,-460.0,0.00019768,2]
[378739074,1754997046676,-460.0,0.00019768,2]
[378739076,1754997046686,-460.0,0.00019768,2]
[378739078,1754997046696,-572.02,0.00019768,2]
[378739080,1754997046706,-498.75,0.00019768,2]
[378739082,1754997046716,-151.0,0.00019771,2]
[378739084,1754997046725,-151.0,0.00019771,2]
[378739086,1754997046734,-151.0,0.00019771,2]
[378739088,1754997046744,-151.0,0.00019771,2]
[378739090,1754997046754,-151.0,0.00019771,2]
[378739092,1754997046763,-151.0,0.00019771,2]
[378739094,1754997046772,-151.0,0.00019771,2]
[378739096,1754997046782,-151.0,0.00019771,2]
[378739098,1754997046792,-500.0,0.00019771,2]
[378739100,1754997046802,-1562.0,0.00019771,2]
[378739102,1754997046812,-2218.0,0.00019771,2]
[378739104,1754997046822,-151.0,0.00019771,2]
[378739106,1754997046832,-151.0,0.00019771,2]
[378739109,1754997046842,-500.0,0.00019771,2]
[378739111,1754997046852,-2000.0,0.000198,4]
[378739113,1754997046862,-160.0,0.00019806,2]
[378739115,1754997046872,-1500.0,0.00019812,2]
[378739117,1754997046881,-711.74076198,0.00019819,2]
[378739119,1754997046891,-1500.0,0.00019819,2]
[378739121,1754997046900,-1500.0,0.00019819,2]
[378739123,1754997046909,-1500.0,0.00019822,2]
[378739125,1754997046918,-1500.0,0.00019832,2]
[378739127,1754997046927,-971.0,0.0001985,2]
[378739129,1754997046937,-636.0,0.0001985,2]
[378739131,1754997046946,-2151.0,0.0001985,2]
[378739133,1754997046956,-150.0,0.00019856,2]
[378739135,1754997046966,-150.0,0.00019856,2]
[378739137,1754997046975,-480.0,0.00019858,2]
[378739139,1754997046985,-807.902464,0.00019863,2]
[378739141,1754997046995,-201.3,0.00019892,2]
[378739143,1754997047005,-151.0,0.000199,2]
[378739145,1754997047014,-42610.59615866,0.000199,2]
[378739147,1754997047024,-150.0,0.00019915,2]
[378739149,1754997047033,-150.0,0.00019915,2]
[378739151,1754997047042,-150.0,0.00019915,2]
[378739153,1754997047052,-300.40663365,0.0002,2]
[378739155,1754997047061,-4000.0,0.0002,4]
[378739157,1754997047072,-2000.0,0.00020016,2]
[378739159,1754997047082,-460.0,0.00020034,2]
[378739160,1754997047092,-482.82,0.00020034,2]
[378739161,1754997047102,-1178.44,0.00020034,2]
[378739162,1754997047112,-460.0,0.00020034,2]
[378739163,1754997047121,-2783.55,0.00020034,2]
[378739164,1754997047131,-564.58,0.00020034,2]
[378739165,1754997047140,-460.0,0.00020035,2]
[378739166,1754997047150,-1733.83,0.00020035,2]
[378739167,1754997047160,-2264.23,0.00020035,2]
[378739168,1754997047170,-460.0,0.00020035,2]
[378739169,1754997047179,-460.0,0.00020035,2]
[378739170,1754997047189,-1356.4,0.00020035,2]
[378739171,1754997047199,-3959.62,0.00020035,2]
[378739172,1754997047208,-547.64,0.00020035,2]
[378739173,1754997047218,-800.67,0.00020035,2]
[378739174,1754997047228,-460.0,0.00020035,2]
[378739175,1754997047238,-949.7,0.00020035,2]
[378739176,1754997047249,-1121.99,0.00020035,2]
[378739178,1754997047259,-710.82,0.00020035,2]
[378739180,1754997047270,-639.9,0.00020035,2]
[378739182,1754997047280,-923.38,0.00020035,2]
[378739184,1754997047290,-460.0,0.00020036,2]
[378739186,1754997047300,-583.79,0.00020036,2]
[378739188,1754997047310,-472.03,0.00020036,2]
[378739190,1754997047321,-460.0,0.00020036,2]
[378739192,1754997047336,-520.19247644,0.00020036,2]
[378739194,1754997047346,-460.0,0.00020036,2]
[378739196,1754997047358,-606.38,0.00020036,2]
[378739198,1754997047369,-504.95,0.00020036,2]
[378739200,1754997047379,-460.0,0.00020036,2]
[378739202,1754997047389,-490.1,0.00020036,2]
[378739204,1754997047402,-610.05,0.00020036,2]
[378739206,1754997047413,-460.0,0.00020036,2]
[378739208,1754997047424,-460.0,0.00020036,2]
[378739210,1754997047434,-807.82,0.00020036,2]
[378739213,1754997047446,-460.0,0.00020036,2]
[378739230,1754997047620,-469.0,0.00020036,2]
[378739232,1754997047631,-510.89,0.00020036,2]
[378739234,1754997047641,-853.56,0.00020036,2]
[378739236,1754997047650,-460.0,0.00020036,2]
[378739238,1754997047660,-460.0,0.00020036,2]
[378739240,1754997047670,-460.0,0.00020036,2]
[378739241,1754997047680,-460.0,0.00020036,2]
[378739243,1754997047689,-410.27524527,0.00020036,2]
[378739264,1754997047890,-49.72475473,0.00020036,2]
[378739266,1754997047900,-614.51,0.00020036,2]
[378739268,1754997047911,-321.14000047,0.00020036,2]
[378739296,1754997048215,-460.0,0.00018115,2]
[378739298,1754997048226,-460.0,0.00018118,2]
[378739300,1754997048236,-300.0,0.00018853,2]
[378739302,1754997048247,-410.92101454,0.00018853,2]
[378739307,1754997048280,-89.07898546,0.00018853,2]
[378739309,1754997048291,-300.0,0.00018853,2]
[378739311,1754997048301,-500.0,0.00018853,2]
[378739313,1754997048311,-300.0,0.00018853,2]
[378739314,1754997048321,-111.58707087,0.00018853,2]
[378739603,1754997065852,8572.67570206,0.00018018,2]
[378739604,1754997065878,6193.07437324,0.00018018,2]
[378739605,1754997103038,150.330083,0.000231,30]
[378739606,1754997115416,151.11938259,0.00018016,2]
[378739607,1754997150226,157.63588714,8.5e-07,2]
[378739609,1754997229731,3498.17035703,0.00018018,2]
[378739610,1754997229753,10000.0,0.00018018,2]
[378739611,1754997229776,10000.0,0.00018018,2]
[378739612,1754997229801,10000.0,0.00018018,2]
[378739613,1754997229824,10000.0,0.00018018,2]
[378739614,1754997229846,10000.0,0.00018018,2]
[378739615,1754997229869,10000.0,0.00018018,2]
[378739616,1754997229890,10000.0,0.00018018,2]
[378739617,1754997229911,10000.0,0.00018018,2]
[378739618,1754997229933,10000.0,0.00018018,2]
[378739619,1754997229955,10000.0,0.00018018,2]
[378739620,1754997229977,10000.0,0.00018018,2]
[378739621,1754997229998,10000.0,0.00018018,2]
[378739622,1754997230021,10000.0,0.00018018,2]
[378739623,1754997230042,10000.0,0.00018018,2]
[378739624,1754997230064,10000.0,0.00018018,2]
[378739625,1754997230085,10000.0,0.00018018,2]
[378739626,1754997230107,10000.0,0.00018018,2]
[378739627,1754997230129,10000.0,0.00018018,2]
[378739628,1754997230150,10000.0,0.00018018,2]
[378739629,1754997230171,10000.0,0.00018018,2]
[378739630,1754997231049,-152.0332552,0.00018018,2]
[378739631,1754997236501,-178.93098434,0.00018018,2]
[378739632,1754997239082,-164.0772322,0.00018018,2]
[378739633,1754997241712,-318.84727447,0.00018018,2]
[378739635,1754997245047,-168.77167557,0.00018017,2]
[378739636,1754997246531,-131.22832443,0.00018017,2]
[378739637,1754997246556,-130.84366287,0.00018018,2]
[378739638,1754997250190,-271.73873897,0.00018018,2]
[378739639,1754997252823,-333.24125087,0.00018018,2]
[378739640,1754997256202,-330.26763059,0.00018018,2]
[378739641,1754997257735,-304.97359093,0.00018018,2]
[378739642,1754997259207,-217.41933269,0.00018018,2]
[378739643,1754997262668,-169.98956831,0.00018018,2]
[378739644,1754997266006,-300.0,0.00018018,2]
[378739645,1754997267544,-171.54027768,0.00018018,2]
[378739646,1754997269908,-191.54580019,0.00018018,2]
[378739647,1754997274664,-232.64148585,0.00018018,2]
[378739648,1754997277213,-395.6458207,0.00018017,2]
[378739649,1754997280517,-64.3541793,0.00018017,2]
[378739650,1754997280554,-148.80080057,0.00018017,2]
[378739651,1754997282233,-5.14787961,0.00018017,2]
[378739652,1754997282257,-288.25799454,0.00018017,2]
[378739653,1754997285634,-211.74200546,0.00018017,2]
[378739654,1754997285658,-26.11746317,0.00018017,2]
[378739655,1754997288339,-323.80693673,0.00018017,2]
[378739656,1754997290958,-150.0756001,0.00018017,2]
[378739657,1754997290979,-173.96688245,0.00018017,2]
[378739658,1754997293321,-263.59378805,0.00018017,2]
[378739659,1754997295470,-114.35756465,0.00018017,2]
[378739660,1754997295492,-147.63016206,0.00018017,2]
[378739661,1754997298234,-244.05858128,0.00018017,2]
[378739662,1754997301518,-108.31125666,0.00018017,2]
[378739663,1754997301544,-75.78367888,0.00018017,2]
[378739664,1754997304985,-211.33712724,0.00018016,2]
[378739665,1754997307422,-88.66287276,0.00018016,2]
[378739666,1754997307444,-185.21356197,0.00018017,2]
[378739667,1754997310932,-183.59764733,0.00018017,2]
[378739668,1754997313072,-108.73852268,0.00018017,2]
[378739669,1754997313100,-235.57264002,0.00018017,2]
[378739670,1754997316061,-180.90390237,0.00018017,2]
[378739671,1754997320346,-276.77628071,0.00018017,2]
[378739672,1754997323844,-151.58592883,0.00018017,2]
[378739673,1754997327356,-31.63779046,0.00018017,2]
[378739674,1754997327377,-227.74407277,0.00018017,2]
[378739675,1754997330780,-232.25592723,0.00018017,2]
[378739676,1754997330803,-125.19415429,0.00018017,2]
[378739677,1754997333626,-331.64639503,0.00018017,2]
[378739678,1754997335609,-3.15945068,0.00018017,2]
[378739679,1754997335633,-7.73977873,0.00018017,2]
[378739680,1754997335658,-248.80747384,0.00018017,2]
[378739681,1754997335683,-159.12387987,0.00018017,2]
[378739682,1754997340937,-198.91289411,0.00018017,2]
[378739683,1754997342481,-141.96322602,0.00018017,2]
[378739684,1754997342504,-22.28106112,0.00018017,2]
[378739685,1754997346959,-168.48143441,0.00018017,2]
[378739686,1754997348635,-158.52099033,0.00018017,2]
[378739687,1754997350679,-146.26546414,0.00018017,2]
[378739688,1754997350703,-301.76915546,0.00018017,2]
[378739689,1754997354565,-232.29576946,0.00018017,2]
[378739690,1754997354588,-195.57392048,0.00018017,2]
[378739691,1754997357385,-157.673782,0.00018017,2]
[378739692,1754997358929,-146.75229752,0.00018017,2]
[378739693,1754997358953,-153.24770248,0.00018018,2]
[378739694,1754997361053,-200.11611427,0.00018018,2]
[378739695,1754997363681,-154.21641368,0.00018018,2]
[378739696,1754997366952,-257.23019291,0.00018017,2]
[378739697,1754997369530,-42.76980709,0.00018017,2]
[378739698,1754997369553,-237.65562141,0.00018018,2]
[378739699,1754997372646,-174.47428155,0.00018018,2]
[378739700,1754997374297,-195.57572022,0.00018018,2]
[378739701,1754997375744,-354.25395833,0.00018017,2]
[378739702,1754997378021,-105.74604167,0.00018017,2]
[378739703,1754997378045,-156.11731599,0.00018018,2]
[378739704,1754997380618,-184.06127989,0.00018018,2]
[378739705,1754997382376,-173.36079911,0.00018018,2]
[378739706,1754997383644,-197.82291034,0.00018018,2]
[378739707,1754997385244,-460.0,0.00018017,2]
[378739708,1754997385266,-11.20711045,0.00018018,2]
[378739709,1754997387991,-210.35256253,0.00018018,2]
[378739710,1754997391220,-317.1158498,0.00018018,2]
[378739711,1754997393281,-241.4,0.00018017,2]
[378739712,1754997395354,-218.6,0.00018017,2]
[378739713,1754997395377,-52.44595308,0.00018018,2]
[378739714,1754997398133,-151.16580636,0.00018018,2]
[378739715,1754997400284,-245.06655827,0.00018018,2]
[378739716,1754997403206,-206.8110983,0.00018018,2]
[378739717,1754997405599,-163.82,0.00018017,2]
[378739718,1754997408239,-206.90154381,0.00018007,2]
[378739719,1754997410919,-210.58906433,0.00018007,2]
[378739720,1754997414101,-169.7506352,0.00018007,2]
[378739721,1754997416207,-165.71385135,0.00018007,2]
[378739722,1754997416230,-110.19460484,0.00018017,2]
[378739723,1754997417731,216.17931876,0.00017918,2]
[378739724,1754997417761,-185.98539516,0.00018017,2]
[378739725,1754997417784,-107.85683297,0.00018017,2]
[378739726,1754997420416,-192.68,0.00018017,2]
[378739727,1754997423071,-234.28565764,0.00018017,2]
[378739728,1754997425347,-290.1493648,0.00018017,2]
[378739729,1754997595761,211.302252,0.00017083,2]
[378739730,1754997682303,210.35256253,0.00017916,2]
[378739731,1754997702828,150.330083,0.000231,30]
[378739732,1754997717543,1600.0,0.0001762,2]
[378739733,1754997720504,440.15264415,0.00017476,2]
[378739735,1754997874017,7322.01322256,0.00017017,2]
[378739736,1754997874041,10000.0,0.00017017,2]
[378739737,1754997874065,7577.98677744,0.00017017,2]
[378739738,1754997961850,425.137583,0.00013699,2]
[378739742,1754998072208,200.0,0.00018,2]
[378739747,1754998129656,1796.87563956,0.00018,2]
[378739748,1754998129679,1115.00591729,0.00018,2]
[378739780,1754998232818,-886.3095872,0.00018007,2]
[378739781,1754998232876,-139.6904128,0.00018007,2]
[378739782,1754998232886,-869.08,0.00018008,3]
[378739783,1754998232896,-434.54,0.00018008,3]
[378739784,1754998232905,-217.27,0.00018008,3]
[378739785,1754998232915,-651.86,0.00018008,3]
[378739786,1754998232925,-300.0,0.00018009,2]
[378739787,1754998232934,-460.0,0.00018015,2]
[378739788,1754998232944,-460.0,0.00018015,2]
[378739789,1754998232953,-460.0,0.00018015,2]
[378739791,1754998232964,-301.30025005,0.00018015,2]